Cogmind - Beta 16 --- EXPLORER MODE // 2026.01.13 @ 10:24:57 Player: K.K.Y. Result: Destroyed by 9Z-UA5(R) with Subdweller Machine Gun Performance ------------- Evolutions (0) 0 Regions Visited (3) 600 Robots Destroyed (47) 235 Value Destroyed (1028) 1028 Prototype IDs (13) 260 Alien Tech Used (0) 0 Bonus (-51) -51 TOTAL SCORE: 2072 Bonus ------- Follower Combat Kills 37 Friendly Fire -88 Cogmind --------- Core Integrity 0/250 Matter 219/300 Energy 50/100 System Corruption 0% Temperature Cool (0) Movement Core (800) Ox15 Location -10/Subcaves Parts ------- > --- POWER (1) -------- (None) > --- PROPULSION (2) --- (None) > --- UTILITY (3) ------ High-capacity Storage Unit Structural Scanner > --- WEAPON (2) ------- Field Laser Improved Light Cannon > --- INVENTORY (20) --- Improved Heat Sink Improved Heat Sink Large Storage Unit Humpback Sensor Array Sensor Array Improved Terrain Scanner Core Shielding Core Shielding Makeshift Light Armor Plating Improved Trap Extractor (0/6) Shock Rifle High-powered Shotgun High-powered Shotgun Mining Laser Peak State ------------ > --- POWER ------------ Light Nuclear Core > --- PROPULSION ------- Light Treads Advanced Treads > --- UTILITY ---------- Improved Heat Sink High-capacity Storage Unit Particle Charger > --- WEAPON ----------- Shock Rifle Field Laser > --- INVENTORY -------- Improved Heat Sink Large Storage Unit Humpback Structural Scanner Sensor Array Sensor Array Improved Terrain Scanner Core Shielding Core Shielding Makeshift Light Armor Plating Improved Trap Extractor High-powered Shotgun High-powered Shotgun Improved Light Cannon Improved Light Cannon Improved Light Cannon Mining Laser [Rating: 23] Favorites ----------- Power Light Nuclear Core Engine Ion Engine Power Core Light Nuclear Core Propulsion Advanced Treads Treads Advanced Treads Flight Unit Improved Flight Unit Utility High-capacity Storage Unit Device Structural Scanner Storage High-capacity Storage Unit Processor Targeting Computer Protection Core Shielding Weapon Improved Light Cannon Energy Gun Field Laser Energy Cannon Beam Cannon Ballistic Cannon Improved Light Cannon Special Weapon Mining Laser Build | -11 -10 -10 -10 ------- Run | Yrd Mat Min Sub Slots Evolved 1 | . 1 . . Power . | . . . . Propulsion . | . . . . Utility 1 | . 1 . . Weapon . | . . . . Parts Attached 36 | 7 14 6 9 Power 3 | 1 . . 2 Engine 1 | 1 . . . Core 2 | . . . 2 Reactor . | . . . . Propulsion 10 | 2 5 2 1 Treads 9 | 2 4 2 1 Leg . | . . . . Wheel . | . . . . Hover . | . . . . Flight 1 | . 1 . . Utility 9 | 2 3 3 1 Device 4 | . 1 2 1 Storage 3 | . 2 1 . Processor 1 | 1 . . . Hackware . | . . . . Protection 1 | 1 . . . Artifact . | . . . . Weapon 14 | 2 6 1 5 Energy Gun 7 | 2 3 . 2 Energy Cannon 1 | . 1 . . Ballistic Gun . | . . . . Ballistic Cannon 5 | . 2 1 2 Launcher . | . . . . Special Weapon 1 | . . . 1 Impact Weapon . | . . . . Slashing Weapon . | . . . . Piercing Weapon . | . . . . Special Melee Weapon . | . . . . Unidentified Prototypes 1 | . 1 . . Parts Lost 10 | . . . 10 Power 2 | . . . 2 Propulsion 3 | . . . 3 Utility 1 | . . . 1 Weapon 4 | . . . 4 Highest Loss Streak 6 | . . . 6 To Critical Strikes . | . . . . Average Backups 15 | 1 8 15 17 Power . | . . . . Propulsion . | . 1 . . Utility 8 | 1 3 6 10 Weapon 6 | . 3 7 6 Tool/Special . | . . . . Unused Backups 14 | 1 2 . 11 Power . | . . . . Propulsion . | . . . . Utility 10 | 1 . . 9 Weapon 4 | . 2 . 2 Tool/Special . | . . . . Average Slot Usage (%) 95 | . 98 100 94 Engine 3 | . 11 12 . Core 6 | . . . 8 Treads 22 | . 24 25 22 Device 15 | . 11 12 16 Storage 11 | . 10 12 12 Protection 9 | . 12 12 7 Energy Gun 8 | . 14 . 8 Energy Cannon 1 | . 7 . . Ballistic Cannon 15 | . 2 25 16 Peak Build Rating 23 | 7 11 20 23 Average Rating 16 | 5 8 18 18 On Entrance 9 | . 7 11 19 Avg Prop Armor Cover (%) . | . . . . Naked Turns . | . . . . Heaviest Build 59 | 8 35 59 57 Greatest Support 44 | 40 40 44 44 Greatest Overweight (x) 2 | . 1 1 2 Average Overweight (x) . | . . . 1 Largest Inventory Capacity 20 | 5 15 20 20 Average Capacity 18 | 5 12 19 20 Most Carried 20 | 4 15 19 20 Average Carried 16 | 2 8 15 18 Final Capacity 20 | 5 15 20 20 Final Carried 19 | 3 9 19 16 Class Distribution -------------------- 100% | Hacker-Mutant Dominant Class ---------------- Hacker-Mutant | -10/Materials Hacker-Mutant | -10/Mines Hacker-Mutant | -10/Subcaves Resources | -11 -10 -10 -10 ----------- Run | Yrd Mat Min Sub Matter Collected 1517 | 270 126 248 873 Remotely . | . . . . Salvage Created 1186 | 133 614 226 213 Parts 73 | 12 34 12 15 Haulers Intercepted 2 | . 2 . . Recyclers Shooed 3 | 1 2 . . Parts Field Recycled . | . . . . Retrieved Matter . | . . . . Parts Self-Destructed . | . . . . Prevented . | . . . . Parts Restored . | . . . . Kills | -11 -10 -10 -10 ------- Run | Yrd Mat Min Sub Combat Hostiles Destroyed 30 | . 10 8 12 Guns 10 | . 9 . 1 Cannons 20 | . 1 8 11 Classes Destroyed 11 | 2 6 . 3 Worker 1 | . 1 . . Builder 2 | . 2 . . Tunneler 3 | 3 . . . Hauler 2 | . 2 . . Recycler 3 | 1 1 1 . Turret 2 | . . . 2 Watcher 3 | . 3 . . Swarmer 11 | . 4 4 3 Grunt 12 | . 6 4 2 Artisan 2 | . . . 2 Subdweller 8 | . . . 8 Best Kill Streak 4 | 4 4 3 3 Combat Bots Only 4 | . 4 2 3 Max Kills in Single Turn 2 | 2 2 1 1 Gunslinging . | . . . . Exploded . | . . . . Melee . | . . . . Uniques/NPCs Destroyed . | . . . . Combat | -11 -10 -10 -10 -------- Run | Yrd Mat Min Sub Hostile Shots Fired 280 | . 48 15 217 Missed 81 | . 13 3 65 Hits 199 | . 35 12 152 Projectile 199 | . 35 12 152 AOE 5 | . . . 5 Critical Strikes 1 | . . . 1 Damage Taken 1813 | . 245 78 1490 Core 253 | . 44 12 197 Absorbed by Shields . | . . . . Redirected to Shielding 33 | . 7 2 24 Ignored by Resistances 1137 | . 160 54 923 Core Remaining (%) 100 | 100 . . . Volleys Fired 205 | 6 47 12 140 Largest 2 | 2 2 2 2 Hottest 125 | 80 125 70 113 Shots Fired 392 | 12 94 24 262 Gun 148 | 12 76 . 60 Cannon 244 | . 18 24 202 Launcher . | . . . . Special . | . . . . Kinetic 232 | . 6 24 202 Thermal 158 | 12 88 . 58 Explosive . | . . . . Electromagnetic 2 | . . . 2 Robot Hit Streak 76 | 4 22 13 76 Robot Miss Streak 6 | 1 1 2 6 Penetration Max . | . . . . Secondary Targets 6 | . 6 . . Max Gunslinging Chain 1 | . 1 . . Shots Hit Robots 214 | 6 79 17 112 Core Hits 94 | 5 29 23 37 Critical Kills . | . . . . Critical Parts Destroyed . | . . . . Critical Strikes 9 | . 5 . 4 Burn 5 | . 5 . . Blast 4 | . . . 4 Melee Attacks . | . . . . Impact . | . . . . Slashing . | . . . . Piercing . | . . . . Sneak Attacks . | . . . . Combat Hostiles . | . . . . Follow-up Attacks . | . . . . Damage Inflicted 3725 | 74 1055 434 2162 Guns 1277 | 74 784 . 419 Cannons 2448 | . 271 434 1743 Explosions . | . . . . Melee . | . . . . Ramming . | . . . . Kinetic 2237 | . 60 434 1743 Thermal 1488 | 74 995 . 419 Explosive . | . . . . Electromagnetic . | . . . . Impact . | . . . . Slashing . | . . . . Piercing . | . . . . Highest Corruption . | . . . . Average Corruption . | . . . . Corruption Purged . | . . . . Corruption Blocked . | . . . . Overload Shots . | . . . . Overflow Damage 25 | . 22 . 3 Projectiles 25 | . 22 . 3 Explosions . | . . . . Melee . | . . . . Knockbacks 26 | . 1 9 16 Impact . | . . . . Kinetic 26 | . 1 9 16 Secondary . | . . . . Self-Inflicted Damage . | . . . . Shots . | . . . . Rammed . | . . . . Targets Rammed . | . . . . Kicked . | . . . . Crushed . | . . . . Highest Temperature 84 | 72 84 45 6 Average Temperature 26 | 32 30 18 2 Received Heat Transfer 927 | . 189 54 684 Siege Activations . | . . . . Martial Activations . | . . . . Shielding Activations . | . . . . Robots Disrupted . | . . . . Combat Hostiles . | . . . . Robots Corrupted . | . . . . Combat Hostiles . | . . . . Parts Fried . | . . . . Impact Corruptions . | . . . . Robots Melted . | . . . . Combat Hostiles . | . . . . Parts Melted 1 | . 1 . . Heat Transferred 3803 | 175 2777 . 851 Parts Sabotaged . | . . . . Parts Stolen . | . . . . Parts Stripped . | . . . . Power Chain Reactions . | . . . . Alert | -11 -10 -10 -10 ------- Run | Yrd Mat Min Sub Maximum Alert Level . | . . . . Low Security (%) 100 | 100 100 100 . Level 1 . | . . . . Level 2 . | . . . . Level 3 . | . . . . Level 4 . | . . . . Level 5 . | . . . . High Security . | . . . . Max Security . | . . . . Peak Influence 95 | 15 95 55 . Initial . | . . . . Average 7 | . 10 5 . Influence Increases 784 | 20 299 205 260 Destroy 0b10 Robot/C 500 | . 200 160 140 Destroy 0b10 Robot/NC 70 | 20 45 5 . Destroy Leader 90 | . 50 40 . Disable Machine 4 | . 4 . . Lose Combat Pursuer 120 | . . . 120 Influence Decreases 784 | 20 299 205 260 Time Decay 764 | 20 299 205 240 Lost Ally 20 | . . . 20 Squads Dispatched . | . . . . Investigation . | . . . . Extermination . | . . . . Reinforcement . | . . . . Assault . | . . . . Garrison . | . . . . Intercept . | . . . . Searches Triggered . | . . . . Construction Impeded . | . . . . Haulers Reinforced . | . . . . Active Scanning Responses . | . . . . Cargo Convoy Interrupts . | . . . . Stealth | -11 -10 -10 -10 --------- Run | Yrd Mat Min Sub Distress Signals 1 | . 1 . . Communications Jammed . | . . . . Distress Signals . | . . . . Times Spotted 51 | . 24 8 19 Peak Tracking Total 7 | . 7 2 5 Tactical Retreats 3 | . . . 3 Traps | -11 -10 -10 -10 ------- Run | Yrd Mat Min Sub Traps Triggered 3 | . 3 . . Indirectly . | . . . . Trap Hack Attempts . | . . . . Triggered . | . . . . Disarmed . | . . . . Reprogrammed . | . . . . Reused . | . . . . Traps Extracted . | . . . . Installed . | . . . . Triggered . | . . . . Machines | -11 -10 -10 -10 ---------- Run | Yrd Mat Min Sub Machines Disabled 2 | . 1 . 1 Max in Single Turn 1 | . 1 . 1 Machines Repaired . | . . . . Machines Dismantled . | . . . . Machines Sabotaged . | . . . . Overloaded Fab Kills . | . . . . Hacking | -11 -10 -10 -10 --------- Run | Yrd Mat Min Sub Machines Accessed 5 | . 2 1 2 Terminals 2 | . 2 . . Fabricators . | . . . . Repair Stations . | . . . . Recycling Units . | . . . . Scanalyzers . | . . . . Garrison Access . | . . . . Total Hacks 17 | . 3 1 13 Successful 16 | . 2 1 13 Failed 1 | . 1 . . Catastrophic . | . . . . Database Lockouts . | . . . . Manual 3 | . 3 . . Terminals 3 | . 3 . . Fabricators . | . . . . Repair Stations . | . . . . Recycling Units . | . . . . Scanalyzers . | . . . . Garrison Access . | . . . . Terminal Hacks 14 | . . 1 13 Record 12 | . . . 12 Open Door 1 | . . 1 . Proto ID Catalog 1 | . . . 1 Fabricator Hacks . | . . . . Repair Station Hacks . | . . . . Recycling Unit Hacks . | . . . . Scanalyzer . | . . . . Garrison Access Hacks . | . . . . Unauthorized Hacks 2 | . 2 . . Terminals 2 | . 2 . . Botnet 2 | . 2 . . Fabricators . | . . . . Repair Stations . | . . . . Recycling Units . | . . . . Scanalyzers . | . . . . Garrison Access . | . . . . Data Cores Recovered . | . . . . Used . | . . . . Hacking Detections 1 | . 1 . . Full Trace Events . | . . . . Feedback Events . | . . . . Feedback Blocked . | . . . . Robot Schematics Acquired . | . . . . Robots Built . | . . . . Authchips . | . . . . Time . | . . . . Total Robot Build Rating . | . . . . Part Schematics Acquired . | . . . . Parts Built . | . . . . Authchips . | . . . . Time . | . . . . Total Part Build Rating . | . . . . Part Studies Acquired . | . . . . Parts Repaired . | . . . . Time . | . . . . Parts Recycled . | . . . . Recycled Matter . | . . . . Retrieved Matter . | . . . . Retrieved Components . | . . . . Parts Scanalyzed . | . . . . Part Schematics Acquired . | . . . . Parts Damaged . | . . . . Bothacking | -11 -10 -10 -10 ------------ Run | Yrd Mat Min Sub Used RIF Installer . | . . . . Robots Hacked . | . . . . Non-combat . | . . . . Combat . | . . . . Robot Hacks Applied . | . . . . Relay Couplers Released . | . . . . Fabnet Peak Effective % . | . . . . Robots Rewired . | . . . . Allies Hacked . | . . . . Hacks Repelled . | . . . . Allies | -11 -10 -10 -10 -------- Run | Yrd Mat Min Sub Total Allies 3 | . . 3 . Largest Group 3 | . . 3 3 Highest-Rated Group 40 | . . 40 40 Highest-Rated Ally 16 | . . 16 16 Total Orders . | . . . . Ally Attacks 19 | . . . 19 Total Damage 64 | . . . 64 Kills 2 | . . . 2 Allies Corrupted . | . . . . Allies Melted . | . . . . Intel | -11 -10 -10 -10 ------- Run | Yrd Mat Min Sub Active Infowar (turns) 7042 | . . 890 6152 Structural 7042 | . . 890 6152 Robot Analysis Total . | . . . . Derelict Logs Recovered 1 | . . . 1 Drone Launches . | . . . . Drone Recoveries . | . . . . Exploration | -11 -10 -10 -10 ------------- Run | Yrd Mat Min Sub Turns Passed 9197 | 113 1441 1317 6326 Spaces Moved 3622 | 53 766 563 2240 Core 17 | 17 . . . Treads 3605 | 36 766 563 2240 Legs . | . . . . Wheels . | . . . . Hover . | . . . . Flight . | . . . . Fastest Speed 50 | 50 160 160 225 Average Speed 221 | 124 160 220 244 Slowest Speed 305 | 160 240 225 305 Overloaded Moves . | . . . . Propulsion Burnouts . | . . . . Robots Hopped . | . . . . Potential Cave-ins 14 | . . . 14 Cave-ins Triggered . | . . . . Exploration Rate (%) 69 | 4 97 98 80 Regions Visited 3 Branch Regions 2 Pre-discovered Areas 1 | . . 1 . Known Exits Taken 3 | 1 1 1 . Unknown Exits Taken . | . . . . Scrap Searched 8 | . . 1 7 Spaces Dug 42 | . . . 42 Terrain Destroyed 42 | . . . 42 Melee . | . . . . Projectile 42 | . . . 42 AOE . | . . . . Terrain Rammed . | . . . . Walls Destroyed . | . . . . Machines Disabled . | . . . . Actions | -11 -10 -10 -10 --------- Run | Yrd Mat Min Sub Total 4419 | 88 893 616 2822 Wait 474 | 11 24 17 422 Move 3619 | 52 765 562 2240 Hop . | . . . . Pick Up 50 | 11 22 14 3 Fast Attach . | . . . . Attach 24 | 7 10 1 6 Detach 6 | . 5 1 . Swap 21 | . 7 5 9 Drop 20 | 1 13 4 2 Fire 205 | 6 47 12 140 Melee . | . . . . Ram . | . . . . Kick . | . . . . Crush . | . . . . Escape Stasis . | . . . . Rewire . | . . . . Trap . | . . . . Miscellaneous . | . . . . Route ------- -11/Scrapyard -10/Materials (discovered 5 exits: *Mat x3 / *Min x2) -10/Mines (discovered 3 exits: *Mat x2 / *Sub) -10/Subcaves (discovered 3 exits: *Mat x2 / *Rec) History --------- Turn | Location | Event 5 | -11/Scrapyard | Identified exit to Materials 5 | -11/Scrapyard | Discovered exit to Materials (range 14) 114 | -11/Scrapyard | Entered Materials 114 | -10/Materials | Evolved 1 slot: Utility x1 265 | -10/Materials | Identified exit to Mines 265 | -10/Materials | Discovered exit to Mines (range 15) 314 | -10/Materials | Build established: Hacker-Mutant 535 | -10/Materials | Discovered exit to Mines (range 7) 664 | -10/Materials | Identified exit to Materials 664 | -10/Materials | Discovered exit to Materials (range 15) 777 | -10/Materials | Discovered exit to Materials (range 16) 1154 | -10/Materials | Discovered exit to Materials (range 3) 1555 | -10/Materials | Entered Mines 1587 | -10/Mines | Met a Derelict who couldn't figure out how to use a Trap Extractor 1799 | -10/Mines | Discovered exit to Materials (range 11) 2422 | -10/Mines | Discovered exit to Materials (range 10) 2527 | -10/Mines | Assisted by bots powering up and referring to "LRC-V3" 2740 | -10/Mines | Learned location of Storage (-9) 2843 | -10/Mines | Identified exit to Subcaves 2843 | -10/Mines | Discovered exit to Subcaves (range 6) 2872 | -10/Mines | Entered Subcaves 2872 | -10/Subcaves | Accompanied by 3 allies 2872 | -10/Subcaves | Identified exit to Materials 2872 | -10/Subcaves | Discovered exit to Materials (range 8) 2873 | -10/Subcaves | Approached by a straggling Scientist 2971 | -10/Subcaves | Lost 4 allies 3021 | -10/Subcaves | Identified exit to Recycling 3021 | -10/Subcaves | Discovered exit to Recycling (range 11) 3646 | -10/Subcaves | Core integrity fell below 50% 3792 | -10/Subcaves | Learned location of 2 exits from Materials 3998 | -10/Subcaves | Discovered exit to Materials (range 11) 4013 | -10/Subcaves | Lost 4 parts (1p1n2w) 4702 | -10/Subcaves | Visited Clippyterm 4711 | -10/Subcaves | Learned 40 Factory zone layouts 5075 | -10/Subcaves | Ambushed by angry Subdweller bent on revenge 6082 | -10/Subcaves | Shifting Twisted Machinery released Humpback 6329 | -10/Subcaves | Visited 4L-MR0's lab 9149 | -10/Subcaves | Core integrity fell below 20% 9198 | -10/Subcaves | Destroyed by 9Z-UA5(R) with Subdweller Machine Gun Last Messages --------------- 09008_ Subatomizers dissect the Flamer. 09041_ Searching scrap... 09041_ Found Flamer. 09041_ Found Piercing Trap. 09041_ Found 46 Matter. 09042_ Acquired 45 matter. 09044_ Acquired 1 matter. 09152_ Imp. Light Cannon destroyed. 09157_ Adv. Treads destroyed. 09163_ JP-MGD(R) knocked back. 09165_ Imp. Light Cannon destroyed. 09165_ JP-MGD(R) destroyed. 09166_ 2J-QBU(R) destroyed. 09176_ 9Z-UA5(R) affixes Scrap Shield Fragment to Scrap Shield. 09179_ Particle Charger destroyed. 09185_ Lgt. Treads destroyed. 09186_ Subatomizers dissect the Sub. Optics. 09188_ Lgt. Nuclear Core destroyed. 09198_ Subatomizers dissect the Sub. Optics. Map ----- +----------------------------------------------------+ | # ##### ##???????????????????????????????????????? | | *### ##???????????????????????????????????????? | | ###### ###???????????????????????????????????????? | | ### ### ???????????????????????????????????????? | | # ####????????????????????????????????????????? | | ## ####?????????????????????????????????????????? | | ### ##??????????????????????????????????????????? | | ## ###??????????????????????????????????????????? | | ### ####?????????????????????????????????????????? | | ###| ####????????????????????????????????????????? | | ##### ## #???????????????????????????????????????? | | ###### ####??????????????????????????????????????? | | ##?#### ####?????????????????????????????????????? | | ##??# ## ####????????????????????????????????????? | | ##???#### #####??????????"###????????????????????? | | ##????####|#####?????????"####???????????????????? | | ##?????####& ###????????? "#### ?????????????????? | | ###?????##### ##?????????? "### ?????????????????? | | ###?????## #######????? # ##?????????????????? | | ##?????## ############## ###?????????????????? | | ######??### ##### ####### # ?????????????????? | | ############ #### # # ?????????????????? | | ### ######### ### # ?????????????????? | | ### ##### #### ## #??????????????? | | # # ##?### !## ##??????????????? | | # ####?####### @ %/ ##??????????????? | | #### ### ??#### R ##??????????????? | | ##??????#### ##??????????????? | | ##?????? ##; ##??????????????? | | ####?????####### ; ##??????????????? | | #####????####### # R" ###??????????????? | | "" ###?????????#######""""####??????????????? | | """ ##?????????#######""""###???????????????? | | "# ##????????????????""" ##????????????????? | | ## ##???????????????? "????????????????????? | | ###??????????????????????????????????????? | | #######??????????????????????????????????????? | | ######???????????????????????????????????????? | | ##??????????????????????????????????????????? | | ### ##??????????????????????????????????????????? | | #######??????????????????????????????????????????? | | #######??????????????????????????????????????????? | | ?????????????????????????????????????????????????? | | ?????????????????????????????????????????????????? | | ?????????????????????????????????????????????????? | | ?????????????????????????????????????????????????? | | ?????????????????????????????????????????????????? | | ?????????????????????????????????????????????????? | | ?????????????????????????????????????????????????? | | ?????????????????????????????????????????????????? | +----------------------------------------------------+ Best States ------------- Heat Dissipation 39 Energy Generation 14 Energy Capacity 250 Matter Stores 300 Matter Capacity 300 Sight Range 16 Terrain Scan Density 10 Resistance: KI 35 Resistance: TH 35 Resistance: EX 35 Resistance: EM 35 Resistance: I 35 Resistance: S 35 Resistance: P 35 Core Shielding 20 Evasion (%) 50 Targeting Accuracy 5 Recoil Reduction 2 Particle Charging 15 Offensive Hacking 20 Item Schematics ----------------- None Robot Schematics ------------------ None Fabricated ------------ Nothing Repaired ---------- Nothing Studied --------- None Alien Tech Used ----------------- None Achievements -------------- None Challenges ------------ None Game ------ Seed ReactiveHardlightMultirail Manual? 0 Play Time 00:29:18 Cumulative 275.5 hours Start 2026.01.13 @ 09:56:59 End 2026.01.13 @ 10:24:57 Sessions 1 Manual Loads 0 Difficulty Explorer Special Mode None Game No. 431 Rogue 0 Adventurer 0 Explorer 431 Win Type - Total 0 Types 0/0/0/0/0/0/0/0/0/0 Lore% 73 Gallery% 69 Achievement% 55 Wizard Run 0 Options --------- Layout 1 ASCII 0 Keyboard 0 Movement Mouse Keybinds 1 Fullscreen 1 Font 24/Smallcaps Map View 50x35 Zoom Use 0% Tactical HUD 1 Map Filters NONE Filters NONE Steam 1 RUN: 070d7676-8fcc-45cd-88b6-525c9a2027f2